bitfinex/quotes_ETHUSD_20240703
["timestamp","ask_amount","ask_price","bid_price","bid_amount"]
[1720031909643,0.06997886,3313.2,3313.1,0.08515589]
[1720031909824,0.06997886,3313.2,3312.8,0.896]
[1720031910023,0.06997886,3313.2,3313.1,0.08515589]
[1720031910322,0.06997886,3313.2,3312.8,0.896]
[1720031910948,0.06997886,3313.2,3312.9,0.08515589]
[1720031911451,3.01838,3313.1,3313.0,0.08515589]
[1720031911672,8.39847,3313.1,3312.4,3.91491]
[1720031911812,8.39847,3313.1,3311.9,6.2034]
[1720031911813,2.3617,3312.6,3312.0,2.4463]
[1720031912018,3.01906,3312.3,3311.6,2.4463]
[1720031912350,3.01923,3312.1,3311.7,1.755738]
[1720031912508,3.01923,3312.1,3311.6,0.896]
[1720031917220,6.03854,3312.1,3311.6,0.896]
[1720031917519,3.01933,3312.0,3311.6,0.896]
[1720031917957,3.2577,3312.6,3311.7,2.42248653]
[1720031917958,3.01892,3312.5,3311.7,2.42248653]
[1720031918112,13.39853,3312.9,3312.3,0.896]
[1720031918113,9.739,3312.9,3312.3,0.896]
[1720031918314,3.08857886,3312.8,3312.5,0.896]
[1720031919014,6.10724886,3312.8,3312.5,0.896]
[1720031919333,3.08857886,3312.8,3312.5,0.896]
[1720031919853,0.06997886,3312.8,3312.5,0.896]
[1720031920325,0.06997886,3312.8,3312.6,0.08293072]
[1720031920519,0.06997886,3312.8,3312.6,0.97893072]
[1720031920723,0.06997886,3312.8,3312.6,0.896]
[1720031920924,0.06997886,3312.8,3312.7,0.08284922]
[1720031921947,0.06997886,3312.8,3312.7,0.14322164]
[1720031922151,0.06997886,3312.8,3312.7,0.08284922]
[1720031923538,0.06997886,3312.8,3312.7,0.48260514]
[1720031923756,0.06997886,3312.8,3312.7,0.542972]
[1720031924059,0.06997886,3312.8,3312.7,0.48260514]
[1720031924265,9.03636,3313.3,3312.7,0.48260514]
[1720031924465,9.03636,3313.3,3312.7,0.08284922]
[1720031925853,3.01823,3313.2,3312.7,0.08284922]
[1720031926023,6.01815,3313.3,3312.8,0.896]
[1720031926440,6.01815,3313.3,3312.9,0.0827392]
[1720031926852,6.01815,3313.3,3312.8,0.896]
[1720031927039,6.01815,3313.3,3313.0,0.0827392]
[1720031927240,6.01815,3313.3,3312.8,0.896]
[1720031927657,6.01815,3313.3,3312.9,0.0827392]
[1720031927862,6.036,3313.5,3312.9,0.0827392]
[1720031928087,6.036,3313.5,3312.9,0.39974092]
[1720031928277,3.01805,3313.4,3313.0,0.08268217]
[1720031928428,3.01805,3313.4,3313.0,0.97868217]
[1720031928628,8.34542,3313.7,3313.0,0.97868217]
[1720031928855,8.41539886,3313.7,3313.0,1.4244199]
[1720031929074,3.01798,3313.5,3313.0,1.4244199]
[1720031929567,3.01809,3313.4,3313.0,1.4244199]
[1720031931987,3.01813,3313.3,3313.0,0.97868217]
[1720031932148,3.01798,3313.5,3313.0,0.97868217]
[1720031932348,6.03602,3313.5,3313.0,0.97868217]
[1720031932578,3.01798,3313.5,3313.0,0.97868217]
[1720031934149,3.08779886,3313.7,3313.2,0.896]
[1720031934559,6.10563886,3313.7,3313.3,0.08232768]
[1720031934767,3.01787,3313.6,3313.3,0.08232768]
[1720031934972,3.01787,3313.6,3313.2,0.896]
[1720031935169,3.01787,3313.6,3313.4,0.08232768]
[1720031935376,3.01787,3313.6,3313.2,1.29347642]
[1720031935562,3.01787,3313.6,3313.5,0.08232768]
[1720031935765,3.01787,3313.6,3313.2,1.29347642]
[1720031936175,3.01787,3313.6,3313.3,0.08232768]
[1720031936548,3.01787,3313.6,3313.2,1.29347642]
[1720031936752,3.01787,3313.6,3313.4,0.08232768]
[1720031936985,3.01787,3313.6,3313.2,1.29347642]
[1720031937192,3.01787,3313.6,3313.5,0.08232768]
[1720031937349,3.01787,3313.6,3313.2,0.896]
[1720031937550,3.01787,3313.6,3313.5,0.08232768]
[1720031937749,3.01787,3313.6,3313.2,0.896]
[1720031938268,3.01787,3313.6,3313.3,0.08232768]
[1720031938683,3.01787,3313.6,3313.2,0.896]
[1720031938890,6.10563886,3313.7,3313.4,0.08232768]
[1720031939056,6.10563886,3313.7,3313.2,0.896]
[1720031939411,3.01786,3313.6,3313.5,0.08232768]
[1720031939960,3.01786,3313.6,3313.1,0.896]
[1720031940153,3.01796,3313.5,3313.1,0.896]
[1720031940356,3.01796,3313.5,3313.2,0.08226251]
[1720031940597,3.01796,3313.5,3312.9,3.01845]
[1720031940804,3.01796,3313.5,3313.0,0.97826251]
[1720031944806,6.03599,3313.5,3313.0,0.97826251]
[1720031945304,3.01822,3313.3,3313.0,0.08226251]
[1720031945516,3.01829,3313.2,3313.0,0.08226251]
[1720031945727,3.01829,3313.2,3312.7,0.896]
[1720031946176,3.01832,3313.1,3312.7,0.896]
[1720031946367,3.01832,3313.1,3312.8,0.0822218]
[1720031946567,3.01832,3313.1,3312.7,0.896]
[1720031946762,3.01832,3313.1,3312.8,0.0822218]
[1720031947281,3.01832,3313.1,3312.9,0.0822218]
[1720031947485,3.01832,3313.1,3312.7,0.896]
[1720031947801,3.01832,3313.1,3313.0,0.0822218]
[1720031948376,3.01832,3313.1,3312.7,0.896]
[1720031949011,3.01832,3313.1,3312.8,0.0822218]
[1720031949305,3.01832,3313.1,3312.7,0.896]
[1720031949477,3.01832,3313.1,3312.9,0.0822218]
[1720031949685,3.01832,3313.1,3312.7,0.896]
[1720031949884,3.01832,3313.1,3313.0,0.0822218]
[1720031950096,3.01832,3313.1,3312.7,0.896]
[1720031950273,3.01832,3313.1,3313.0,0.0822218]
[1720031950468,3.01832,3313.1,3312.7,0.896]
[1720031950680,3.01832,3313.1,3313.0,0.0822218]
[1720031950975,3.01832,3313.1,3312.7,0.896]
[1720031951182,3.01832,3313.1,3313.0,0.0822218]
[1720031951418,3.01832,3313.1,3312.9,0.896]
[1720031951709,3.01832,3313.1,3313.0,0.0822218]
[1720031953202,3.01832,3313.1,3312.7,0.896]
[1720031953406,3.01832,3313.1,3312.8,0.0822218]
[1720031953592,3.01832,3313.1,3312.7,0.896]
[1720031953793,3.01832,3313.1,3312.8,0.0822218]
[1720031954031,3.01832,3313.1,3312.5,2.4647]
[1720031954232,3.01875,3312.7,3312.2,0.896]
[1720031954455,3.01875,3312.7,3312.1,2.465]
[1720031954639,3.01887,3312.5,3312.3,0.0822951]
[1720031954923,6.03752,3312.7,3312.2,0.896]
[1720031955132,3.01877,3312.6,3312.4,0.0822951]
[1720031955299,3.01877,3312.6,3312.2,0.896]
[1720031955502,3.01877,3312.6,3312.5,0.0822951]
[1720031955707,3.01877,3312.6,3312.2,0.896]
[1720031956223,3.01877,3312.6,3312.3,0.0822951]
[1720031957617,3.01887,3312.5,3312.3,0.0822951]
[1720031958131,3.01887,3312.5,3312.4,0.0822951]
[1720031958436,3.01887,3312.5,3311.7,3.01956]
[1720031958437,3.01905,3312.3,3311.7,5.48456]
[1720031958638,3.01905,3312.3,3312.1,0.896]
[1720031959596,3.01905,3312.3,3311.7,5.48456]
[1720031959796,3.01905,3312.3,3312.0,0.896]
[1720031960945,3.01905,3312.3,3311.7,5.48456]
[1720031960946,3.01887,3312.5,3312.2,3.3517]
[1720031961150,3.01887,3312.5,3312.4,0.896]
[1720031961514,3.01887,3312.5,3312.2,3.3517]
[1720031967745,3.01887,3312.5,3312.2,2.4557]
[1720031967960,3.01887,3312.5,3312.3,0.08251513]
[1720031973424,3.01887,3312.5,3312.0,3.3522]
[1720031973751,3.01887,3312.5,3312.1,0.08251513]
[1720031976163,3.0191,3312.3,3312.1,0.08251513]
[1720031976456,3.0191,3312.3,3311.7,2.2613]
[1720031976654,3.0191,3312.3,3311.8,0.08254773]
[1720031976860,3.0191,3312.3,3311.7,2.2613]
[1720031977064,2.3734,3312.4,3311.9,0.08254773]
[1720031977266,3.01932,3312.0,3311.3,16.5552]
[1720031977470,3.01932,3312.0,3311.3,9.2752]
[1720031978428,3.01932,3312.0,3311.3,6.2553]
[1720031978673,6.03871,3312.0,3311.3,6.2553]
[1720031978983,3.01956,3311.8,3311.1,2.2859]
[1720031979139,3.01961,3311.7,3311.1,2.2859]
[1720031980467,3.01969,3311.6,3311.1,2.2859]
[1720031981567,2.33987886,3311.9,3311.5,0.896]
[1720031981757,3.08952886,3311.8,3311.5,0.896]
[1720031982131,3.08952886,3311.8,3311.3,0.896]
[1720031982330,0.06997886,3311.8,3311.3,1.516202]
[1720031982566,0.06997886,3311.8,3311.5,0.896]
[1720031983065,0.06997886,3311.8,3311.6,0.08321607]
[1720031986338,0.06997886,3311.8,3311.4,3.01985]
[1720031986642,0.06997886,3311.8,3311.7,0.07498692]
[1720031986862,0.06997886,3311.8,3311.4,3.01985]
[1720031987082,0.06997886,3311.8,3311.7,0.07525186]
[1720031987373,0.06997886,3311.8,3311.4,3.7754592]
[1720031988163,0.06997886,3311.8,3311.5,0.07257045]
[1720031990460,0.06997886,3311.8,3311.5,0.96857045]
[1720031995645,0.06997886,3311.8,3311.5,0.07257045]
[1720031998384,3.64134975,3311.8,3311.5,0.07257045]
[1720031998887,3.64134975,3311.8,3311.6,0.05664337]
[1720031999092,3.64134975,3311.8,3311.1,6.93618]
[1720031999244,3.08948886,3311.8,3311.1,3.91609]
[1720031999444,3.08948886,3311.8,3311.7,0.05664337]
[1720031999658,3.08948886,3311.8,3311.1,3.91609]
[1720031999858,3.08948886,3311.8,3311.7,0.05667599]
[1720032000270,6.10905886,3311.8,3311.7,0.05667599]
[1720032000665,6.10905886,3311.8,3311.1,3.91609]
[1720032000879,6.10905886,3311.8,3311.7,0.05668822]
[1720032001089,6.96289475,3311.8,3311.1,3.91609]
[1720032001262,6.10905886,3311.8,3311.7,0.05668822]
[1720032001587,3.0196,3311.7,3311.1,3.91609]
[1720032005577,3.0196,3311.7,3311.3,0.896]
[1720032006903,3.0196,3311.7,3311.5,0.896]
[1720032007111,0.06997886,3311.8,3311.5,0.896]
[1720032007467,2.4582,3311.7,3311.1,3.02008]
[1720032007671,2.4582,3311.7,3311.3,0.896]
[1720032008169,5.4778,3311.7,3311.3,0.896]
[1720032009172,3.0196,3311.7,3311.2,0.302008]
[1720032009368,3.0196,3311.7,3311.1,3.91608]
[1720032012914,3.0196,3311.7,3311.2,0.04956832]
[1720032015009,6.03926,3311.7,3311.2,0.04956832]
[1720032015311,2.4916,3311.4,3311.2,0.04956832]
[1720032015674,2.4916,3311.4,3310.9,3.91627]
[1720032016006,2.4916,3311.4,3310.9,1.834703]
[1720032016209,2.4916,3311.4,3311.0,0.04786342]
[1720032017585,5.51147,3311.4,3311.0,0.04786342]
[1720032017889,3.02014,3311.1,3311.0,0.04786342]
[1720032018076,5.49464,3311.1,3311.0,0.04786342]
[1720032018417,5.49464,3311.1,3310.1,2.3626]
[1720032018418,3.02048,3310.8,3310.1,2.3626]
[1720032018597,3.02048,3310.8,3310.1,3.2586]
[1720032018781,3.02048,3310.8,3310.2,0.04164118]
[1720032018984,3.02056,3310.7,3310.2,0.04164118]
[1720032020733,3.0206,3310.6,3310.2,0.04164118]
[1720032020888,3.02085,3310.4,3310.2,0.04164118]
[1720032021071,6.04172,3310.4,3310.2,0.04164118]
[1720032021418,3.02085,3310.4,3310.3,0.04164118]
[1720032022043,6.04172,3310.4,3309.9,0.896]
[1720032022614,3.02085,3310.4,3310.0,0.04197151]
[1720032025314,3.02085,3310.4,3309.8,2.3626]
[1720032025480,3.02085,3310.4,3310.1,0.04197151]
[1720032025985,5.49512,3310.6,3310.2,0.04197151]
[1720032026204,0.0371647,3310.5,3309.9,0.896]
[1720032026399,0.0371647,3310.5,3310.3,0.04197151]
[1720032026716,0.0371647,3310.5,3310.1,0.896]
[1720032027019,3.0578547,3310.5,3310.1,0.896]
[1720032027174,3.0578547,3310.5,3310.2,0.04197151]
[1720032029325,3.0578547,3310.5,3309.9,0.896]
[1720032029477,3.0578547,3310.5,3310.3,0.04197151]
[1720032029677,3.0578547,3310.5,3309.9,0.896]
[1720032030180,6.0786247,3310.5,3310.0,0.04197151]
[1720032030400,3.02078,3310.4,3310.0,0.04197151]
[1720032031923,3.02078,3310.4,3310.0,0.0708654]
[1720032034209,3.02078,3310.4,3309.8,3.9173]
[1720032034420,3.02098,3310.2,3310.1,0.06850323]
[1720032034624,6.04201,3310.2,3309.5,3.91754]
[1720032034928,6.04201,3310.2,3310.1,0.06633402]
[1720032035095,6.73952747,3310.2,3309.5,3.02154]
[1720032035297,6.04201,3310.2,3310.1,0.06633402]
[1720032035610,3.02106,3310.1,3309.5,3.91754]
[1720032038408,3.02106,3310.1,3309.4,2.4489]
[1720032038409,3.02117,3310.0,3309.4,2.4489]
[1720032038797,3.91717,3310.0,3309.4,2.4489]
[1720032039031,3.02124,3309.9,3309.4,2.4489]
[1720032039187,3.02111,3310.1,3309.4,2.4489]
[1720032039390,3.02117,3310.0,3309.4,2.4489]
[1720032039622,3.0213,3309.9,3309.4,2.4489]
[1720032042896,3.0213,3309.9,3309.5,0.05991829]
[1720032043508,6.89715847,3310.1,3309.5,0.05991829]
[1720032043830,3.87601847,3310.1,3309.5,0.95591829]
[1720032044031,3.02106,3310.1,3309.5,0.95591829]
[1720032044195,6.0422,3310.1,3309.5,0.95591829]
[1720032044634,6.04219,3310.1,3309.5,0.95591829]
[1720032044804,3.02106,3310.1,3309.5,0.95591829]
[1720032048571,3.02106,3310.1,3309.5,3.97750829]
[1720032050574,2.4703,3310.2,3309.5,3.97750829]
[1720032050937,3.021,3310.2,3309.5,3.97750829]
[1720032051373,3.021,3310.2,3309.5,6.99904829]
[1720032052769,3.021,3310.2,3309.6,3.02151]
[1720032052970,3.021,3310.2,3309.6,3.08137942]
[1720032055898,3.94477,3310.2,3309.6,0.05986942]
[1720032056212,3.3424,3309.9,3309.2,5.38501]
[1720032056360,3.3424,3309.9,3309.7,0.05880638]
[1720032056681,3.3424,3309.9,3309.3,3.02178]
[1720032056993,3.02136,3309.8,3309.2,2.3632]
[1720032057185,3.02136,3309.8,3309.4,0.05880638]
[1720032057383,3.02136,3309.8,3309.2,2.3632]
[1720032057384,6.04276,3309.8,3309.2,2.3632]
[1720032057597,6.04276,3309.8,3309.5,0.05880638]
[1720032057886,3.959876,3309.8,3309.2,2.3632]
[1720032058204,3.959876,3309.8,3308.8,2.3632]
[1720032058205,3.02175,3309.4,3308.8,2.3632]
[1720032058428,3.02175,3309.4,3309.3,0.05886353]
[1720032058590,3.02175,3309.4,3308.8,2.3632]
[1720032058762,6.04351,3309.4,3309.3,0.05886353]
[1720032059103,6.647861,3309.4,3308.8,3.2592]
[1720032059290,6.04351,3309.4,3309.3,0.05886353]
[1720032059486,6.04351,3309.4,3308.8,3.2592]
[1720032059723,6.04351,3309.4,3309.3,0.05886353]
[1720032059926,6.04351,3309.4,3308.8,3.2592]
[1720032060130,3.02175,3309.4,3309.3,0.05886353]
[1720032060343,3.870822,3309.4,3308.8,3.2592]
[1720032060641,3.02178,3309.3,3308.8,3.2592]
[1720032060851,3.02178,3309.3,3308.9,0.05886353]
[1720032061901,0.03651828,3309.2,3308.9,0.05886353]
[1720032063946,0.03651828,3309.2,3309.0,3.022]
[1720032064145,0.03651828,3309.2,3308.9,3.97693353]
[1720032064146,0.03651828,3309.2,3309.1,5.39546]
[1720032064318,0.03651828,3309.2,3309.1,6.38988493]
[1720032065198,0.03651828,3309.2,3309.1,0.99442493]
[1720032065403,0.03651828,3309.2,3309.1,0.05718558]
[1720032066638,0.03651828,3309.2,3309.1,3.07914558]
[1720032066840,0.03651828,3309.2,3309.1,5.49884558]
[1720032070104,0.03651828,3309.2,3309.1,3.07914558]
[1720032070303,0.03651828,3309.2,3309.1,0.05718558]
[1720032072843,0.03651828,3309.2,3309.1,3.07914558]
[1720032073070,0.03651828,3309.2,3309.1,3.77886714]
[1720032074245,0.03651828,3309.2,3309.1,3.07914558]
[1720032074641,0.03651828,3309.2,3309.1,0.05718558]
[1720032075309,0.03651828,3309.2,3308.8,3.2721]
[1720032075530,0.03651828,3309.2,3309.1,0.05727538]
[1720032075709,0.03651828,3309.2,3308.8,3.2721]
[1720032075922,0.03651828,3309.2,3309.1,0.05727538]
[1720032076119,0.03651828,3309.2,3308.8,3.2721]
[1720032076319,0.03651828,3309.2,3309.1,0.05727538]
[1720032076856,0.03651828,3309.2,3308.8,3.2721]
[1720032077154,0.03651828,3309.2,3309.1,0.05727538]
[1720032077309,0.03651828,3309.2,3308.9,3.02215]
[1720032077510,0.03651828,3309.2,3309.1,0.05727538]
[1720032077706,0.03651828,3309.2,3308.9,3.02215]
[1720032077938,0.03651828,3309.2,3309.1,0.05727538]
[1720032078143,0.03651828,3309.2,3308.9,3.02215]
[1720032078340,0.03651828,3309.2,3309.1,0.05727538]
[1720032078543,0.03651828,3309.2,3308.9,3.02215]
[1720032078749,0.03651828,3309.2,3309.1,0.05727538]
[1720032078933,0.03651828,3309.2,3308.8,3.2721]
[1720032079108,0.03651828,3309.2,3309.1,0.05727538]
[1720032079314,0.03651828,3309.2,3308.8,3.2721]
[1720032079514,0.03651828,3309.2,3309.1,0.05727538]
[1720032079711,0.03651828,3309.2,3308.8,3.2721]
[1720032079910,0.03651828,3309.2,3309.1,0.05727538]
[1720032080147,0.03651828,3309.2,3308.6,3.91842]
[1720032080321,0.03651828,3309.2,3309.1,0.05727538]
[1720032080530,0.03651828,3309.2,3308.8,0.896]
[1720032080740,0.03651828,3309.2,3309.1,0.05727538]
[1720032080941,0.03651828,3309.2,3308.7,3.02232]
[1720032081252,0.03651828,3309.2,3308.8,0.896]
[1720032081451,0.03651828,3309.2,3308.8,0.95327538]
[1720032082553,0.03651828,3309.2,3308.8,0.05727538]
[1720032082718,0.03651828,3309.2,3308.8,0.95327538]
[1720032083314,0.03651828,3309.2,3308.8,0.05727538]
[1720032083634,2.43,3309.1,3308.6,3.02237]
[1720032083838,2.43,3309.1,3307.3,3.02355]
[1720032083839,3.02214,3309.0,3308.9,0.05732031]
[1720032084014,3.02214,3309.0,3308.0,2.2729]
[1720032084015,3.02232,3308.8,3308.0,5.29587]
[1720032084441,3.02238,3308.7,3308.0,5.29587]
[1720032084875,3.02238,3308.7,3308.0,2.2729]
[1720032085359,3.02238,3308.7,3308.0,5.29585]
[1720032085518,3.02238,3308.7,3308.0,6.217332]
[1720032085717,6.04479,3308.7,3308.0,7.113332]
[1720032086461,3.02238,3308.7,3308.0,7.113332]
[1720032087527,3.02238,3308.7,3308.0,6.19185]
[1720032087728,6.04479,3308.7,3308.0,6.19185]
[1720032088045,6.04479,3308.7,3308.1,0.05761028]
[1720032088224,3.02242,3308.6,3308.1,0.05761028]
[1720032090337,2.3876,3308.4,3308.1,0.05761028]
[1720032090844,3.02267,3308.4,3308.2,0.05763888]
[1720032091055,3.02286,3308.2,3307.8,0.896]
[1720032091567,3.02286,3308.2,3307.5,3.02342]
[1720032091568,0.03669674,3308.1,3307.5,3.02342]
[1720032091863,3.05957674,3308.1,3307.5,3.876347]
[1720032092360,3.05957674,3308.1,3307.6,0.896]
[1720032092773,3.05957674,3308.1,3307.5,3.02342]
[1720032093124,3.05957674,3308.1,3307.6,0.896]
[1720032093621,3.05957674,3308.1,3306.9,2.391]
[1720032093622,2.2834,3308.0,3306.9,2.391]
[1720032093848,3.02324,3307.8,3307.3,0.896]
[1720032094053,0.03669907,3307.7,3307.3,0.896]
[1720032097063,0.03669907,3307.7,3307.5,0.896]
[1720032097290,0.03669907,3307.7,3307.5,3.91942]
[1720032099231,0.03669907,3307.7,3307.6,3.02334]
[1720032101467,0.03669907,3307.7,3307.6,6.94268]
[1720032102864,0.03669907,3307.7,3307.6,6.99744727]
[1720032104988,0.03669907,3307.7,3307.6,9.28334727]
[1720032106405,0.03669907,3307.7,3307.6,12.30668727]
[1720032106566,0.03669907,3307.7,3307.6,21.0097925]
[1720032106756,2.4234,3309.2,3308.7,3.02226]
[1720032107099,2.4234,3309.7,3309.0,3.02203]
[1720032107579,2.4234,3309.7,3309.0,3.91803]
[1720032107782,0.544478,3309.6,3309.1,0.05446891]
[1720032108175,3.565998,3309.6,3309.1,0.05446891]
[1720032109280,0.544478,3309.6,3309.1,0.05446891]
[1720032109676,0.544478,3309.6,3309.2,0.896]
[1720032109997,0.544478,3309.6,3309.2,0.9503586]
[1720032110170,2.4234,3309.7,3309.2,0.9503586]
[1720032113500,5.44483,3309.7,3309.2,0.9503586]
[1720032118295,2.4523,3310.0,3309.6,0.896]
[1720032118914,2.4523,3310.0,3309.7,0.05361924]
[1720032119102,6.301734,3310.0,3309.7,0.05361924]
[1720032122218,6.301734,3310.0,3309.8,0.05361924]
[1720032122390,6.301734,3310.0,3309.4,3.91762]
[1720032122588,6.301734,3310.0,3309.5,0.05361924]
[1720032125197,9.322884,3310.0,3309.5,0.05361924]
[1720032128642,12.344104,3310.0,3309.5,0.05361924]
[1720032129430,3.02124,3309.9,3309.5,0.05361924]
[1720032130204,6.02115,3310.0,3309.6,0.896]
[1720032130599,6.02115,3310.0,3309.7,0.05361924]
[1720032131012,3.0,3310.0,3309.7,2.31441924]
[1720032131202,6.02106,3310.1,3309.7,2.31441924]
[1720032133940,3.02116,3310.0,3309.7,0.05361924]
[1720032134105,0.602116,3309.9,3309.7,0.05361924]
[1720032134305,0.602116,3309.9,3309.5,3.1529]
[1720032134645,3.02116,3310.0,3309.5,3.1529]
[1720032134880,3.02116,3310.0,3309.6,0.05340284]
[1720032135222,3.02116,3310.0,3309.5,3.1529]
[1720032135541,3.02116,3310.0,3309.6,0.05340284]
[1720032136037,3.02116,3310.0,3309.7,0.05340284]
[1720032136243,3.02116,3310.0,3309.5,3.1529]
[1720032136397,3.02116,3310.0,3309.8,0.05340284]
[1720032136601,3.925375,3310.0,3309.5,3.1529]
[1720032136801,3.0,3310.1,3309.7,0.896]
[1720032137057,3.0,3310.3,3309.7,0.896]
[1720032137335,3.0,3310.3,3310.1,0.896]
[1720032137545,3.0,3310.5,3310.1,0.896]
[1720032137698,1.345065,3310.4,3309.9,3.2428]
[1720032137902,3.0,3310.5,3310.2,0.05340284]
[1720032138148,3.0,3310.5,3310.1,0.896]
[1720032138508,3.0,3310.5,3310.2,0.05340284]
[1720032139857,6.02071,3310.5,3310.0,0.896]
[1720032140147,6.02071,3310.5,3310.3,0.05340284]
[1720032140309,7.594861,3310.5,3310.0,0.896]
[1720032140845,7.594861,3310.5,3310.1,0.05340284]
[1720032141537,3.02087,3310.3,3310.1,0.05340284]
[1720032141834,3.02096,3310.2,3309.6,2.3141]
[1720032142038,3.02096,3310.2,3309.6,3.2101]
[1720032143040,3.02096,3310.2,3309.5,3.0216]
[1720032143041,3.02105,3310.1,3309.3,2.4409]
[1720032143245,3.0213,3309.9,3309.3,2.4409]
[1720032143453,3.0213,3309.9,3309.3,3.3369]
[1720032143740,6.04261,3309.9,3309.3,3.3369]
[1720032144720,3.02133,3309.8,3309.3,3.3369]
[1720032147926,3.02133,3309.8,3309.4,0.04803206]
[1720032148124,3.0213,3309.9,3309.4,0.04803206]
[1720032148125,3.02142,3309.7,3309.4,0.04803206]
[1720032150976,3.02142,3309.7,3309.4,0.94403206]
[1720032152373,3.0213,3309.9,3309.4,0.94403206]
[1720032154256,3.02137,3309.8,3309.4,0.04803206]
[1720032154661,3.02137,3309.8,3309.4,0.94403206]
[1720032157084,3.02143,3309.7,3309.4,0.04803206]
[1720032161177,3.02131,3309.9,3309.4,0.04803206]
[1720032161484,3.02133,3309.8,3309.4,0.04803206]
[1720032162093,6.04274,3309.8,3309.4,0.04803206]
[1720032162300,3.02133,3309.8,3309.4,0.04803206]
[1720032169243,3.02123,3309.9,3309.4,0.04803206]
[1720032172341,3.02104,3310.2,3309.4,0.04803206]
[1720032172527,0.21979655,3310.1,3309.6,2.2708]
[1720032172739,0.21979655,3310.0,3309.6,2.2708]
[1720032173121,0.21979655,3310.0,3309.7,0.04698761]
[1720032174233,3.02106,3310.1,3309.7,0.04698761]
[1720032174435,0.21979865,3310.0,3309.7,0.04698761]
[1720032174621,3.02106,3310.1,3309.7,0.04698761]
[1720032174834,0.21979787,3310.0,3309.7,0.04698761]
[1720032175037,3.02106,3310.1,3309.7,0.04698761]
[1720032175241,0.21979796,3310.0,3309.7,0.04698761]
[1720032175425,3.02106,3310.1,3309.7,0.04698761]
[1720032175610,0.21979889,3310.0,3309.7,0.04698761]
[1720032175839,3.02115,3310.0,3309.7,0.04698761]
[1720032176024,3.851061,3310.0,3309.7,0.04698761]
[1720032176226,3.851061,3310.0,3309.4,2.2708]
[1720032176536,3.02115,3310.0,3309.4,5.29249]
[1720032176846,3.02115,3310.0,3309.5,0.04698761]
[1720032178647,3.24104754,3309.9,3309.5,0.04698761]
[1720032178816,3.02124,3309.9,3309.5,0.04698761]
[1720032179323,3.02147,3309.7,3309.5,0.04698761]
[1720032179944,6.04295,3309.7,3309.5,0.04698761]
[1720032184122,3.02151,3309.6,3309.5,0.04698761]
[1720032193736,3.24132814,3309.6,3309.5,0.04698761]
[1720032193935,3.02151,3309.6,3309.5,0.04698761]
[1720032200370,3.24132487,3309.6,3309.5,0.04698761]
[1720032200776,3.24132488,3309.6,3309.5,0.04698761]
[1720032204099,3.02142,3309.7,3309.5,0.04698761]
[1720032204964,3.02119,3310.0,3309.5,0.04698761]
[1720032205189,0.21980841,3309.9,3309.5,0.04698761]
[1720032205394,0.21980841,3309.8,3309.5,0.04698761]
[1720032205590,3.02119,3310.0,3309.5,0.04698761]
[1720032205829,0.21979477,3309.9,3309.5,0.04698761]
[1720032205975,6.04241,3310.0,3309.5,0.04698761]
[1720032205976,3.02119,3310.0,3309.5,0.04698761]
[1720032206328,0.21979528,3309.9,3309.5,0.04698761]
[1720032206491,3.02119,3310.0,3309.5,0.04698761]
[1720032206696,0.21979576,3309.9,3309.5,0.04698761]
[1720032206905,3.02101,3310.2,3309.5,0.04698761]
[1720032207214,3.2197931,3310.1,3309.6,2.2822]
[1720032207416,3.0,3310.1,3309.6,3.1782]
[1720032207596,0.21979188,3310.0,3309.7,0.0471101]
[1720032207793,3.0,3310.1,3309.7,0.0471101]
[1720032208013,0.21979133,3310.0,3309.7,0.0471101]
[1720032208201,3.0,3310.1,3309.7,0.0471101]
[1720032208518,0.21979138,3310.0,3309.7,0.0471101]
[1720032208688,3.0,3310.1,3309.7,0.0471101]
[1720032208884,0.21979137,3310.0,3309.6,3.1782]
[1720032209087,3.0,3310.1,3309.6,3.1782]
[1720032209314,0.21979225,3310.0,3309.7,2.34]
[1720032209597,3.02083,3310.4,3309.8,0.896]
[1720032209823,0.21977959,3310.3,3309.8,0.896]
[1720032210025,0.21977959,3310.2,3309.9,0.0471101]
[1720032210259,0.21977959,3310.1,3309.9,0.0471101]
[1720032210556,3.0,3310.3,3309.9,0.0471101]
[1720032210759,0.21978407,3310.2,3309.9,0.0471101]
[1720032210919,0.21978407,3310.1,3309.9,0.0471101]
[1720032211117,3.0,3310.3,3309.9,0.0471101]
[1720032211429,0.21978445,3310.2,3309.9,0.0471101]
[1720032211619,0.21978445,3310.1,3309.9,0.0471101]
[1720032211816,3.0,3310.3,3309.9,0.0471101]
[1720032212054,0.2197836,3310.2,3309.9,0.0471101]
[1720032212254,6.02087,3310.3,3309.9,0.0471101]
[1720032212255,0.2197836,3310.1,3309.9,0.0471101]
[1720032212456,6.02087,3310.3,3309.9,0.0471101]
[1720032212655,0.21978702,3310.2,3309.9,0.0471101]
[1720032212861,0.21978702,3310.1,3309.9,0.0471101]
[1720032213045,6.02087,3310.3,3309.9,0.0471101]
[1720032213245,0.21978697,3310.2,3309.9,0.0471101]
[1720032213451,0.21978697,3310.1,3309.9,0.0471101]
[1720032213647,6.02087,3310.3,3309.9,0.0471101]
[1720032213976,6.02087,3310.3,3309.7,2.34]
[1720032213977,7.15608,3310.3,3309.7,2.34]
[1720032214271,0.21978919,3310.2,3309.8,0.0471101]
[1720032214568,0.21978919,3310.1,3309.7,2.34]
[1720032214869,3.02098,3310.2,3309.8,0.04697537]
[1720032215031,3.21979008,3310.1,3309.8,0.04697537]
[1720032215230,3.0,3310.1,3309.7,2.34]
[1720032215431,3.0,3310.1,3309.9,0.04697537]
[1720032215738,3.0,3310.1,3310.0,0.04697537]
[1720032215954,3.2197911,3310.1,3309.7,2.34]
[1720032216138,3.0,3310.1,3309.8,0.04697537]
[1720032216459,3.0,3310.1,3309.7,2.34]
[1720032216668,3.0,3310.1,3309.9,0.04697537]
[1720032216886,3.0,3310.1,3309.7,2.34]
[1720032217031,3.0,3310.1,3310.0,0.04697537]